Cogmind - Beta 9.1 *** ADVENTURER MODE // 2019.10.29 @ 21:33:28 Player: Armok Result: Destroyed by H-55 Commando with Gauss Rifle Performance ------------- Evolutions (2) 1000 Regions Visited (6) 1200 Robots Destroyed (24) 120 Value Destroyed (546) 546 Prototype IDs (4) 80 Alien Tech Used (0) 0 Bonus (291) 291 TOTAL SCORE: 3237 Bonus ------- Follower Combat Kills 91 Entered Garrisons 200 Cogmind --------- Core Integrity 0/550 Matter 300/300 Energy 100/100 System Corruption 3% Temperature Cool (0) Location -8/Garrison Parts ------- Power (1) Propulsion (2) Utility (6) Medium Storage Unit High-capacity Storage Unit Advanced Signal Interpreter Armor Integrity Analyzer Weapon (2) Inventory (16) Ion Engine Light Ion Engine Small Storage Unit Signal Interpreter Armor Integrity Analyzer Grenade Launcher Peak State ------------ Power Light Nuclear Core Propulsion Wheel Compact Wheel Utility High-capacity Storage Unit Experimental Sensor Array Advanced Signal Interpreter Armor Integrity Analyzer Transmission Jammer Medium Armor Plating Weapon Mace Inventory Ion Engine Light Ion Engine Wheel Small Storage Unit Medium Storage Unit Signal Interpreter Armor Integrity Analyzer Light Assault Rifle Grenade Launcher [Rating: 25] Favorites ----------- Power Light Ion Engine Engine Light Ion Engine Power Core Light Nuclear Core Propulsion Compact Wheel Wheel Compact Wheel Utility High-capacity Storage Unit Device Transmission Jammer Storage High-capacity Storage Unit Processor Advanced Signal Interpreter Protection Light Armor Plating Weapon Light Assault Rifle Energy Gun EM Pulse Gun Ballistic Gun Light Assault Rifle Ballistic Cannon Light Cannon Impact Weapon Mace Build | -11 -10 -10 -10 -9 -8 -8 ------- Run | Scr Mat Min Exi Min Mat Gar Slots Evolved 4 | . . . . . 4 . Power . | . . . . . . . Propulsion . | . . . . . . . Utility 4 | . . . . . 4 . Weapon . | . . . . . . . Parts Attached 32 | 6 4 7 . 2 11 2 Power 5 | 1 1 1 . . 2 . Engine 3 | 1 . 1 . . 1 . Core 2 | . 1 . . . 1 . Reactor . | . . . . . . . Propulsion 6 | 2 . 1 . 1 1 1 Treads . | . . . . . . . Leg . | . . . . . . . Wheel 6 | 2 . 1 . 1 1 1 Hover . | . . . . . . . Flight . | . . . . . . . Utility 14 | 1 2 4 . . 6 1 Device 5 | . . 4 . . 1 . Storage 3 | 1 1 . . . . 1 Processor 3 | . . . . . 3 . Hackware . | . . . . . . . Protection 3 | . 1 . . . 2 . Artifact . | . . . . . . . Weapon 7 | 2 1 1 . 1 2 . Energy Gun 1 | 1 . . . . . . Energy Cannon . | . . . . . . . Ballistic Gun 3 | 1 . 1 . . 1 . Ballistic Cannon 2 | . 1 . . . 1 . Launcher . | . . . . . . . Special Weapon . | . . . . . . . Impact Weapon 1 | . . . . 1 . . Slashing Weapon . | . . . . . . . Piercing Weapon . | . . . . . . . Special Melee Weapon . | . . . . . . . Unidentified Prototypes 1 | . . 1 . . . . Parts Lost 14 | . . 4 . . 3 7 Power 2 | . . 1 . . . 1 Propulsion 4 | . . 1 . . . 3 Utility 4 | . . 1 . . 1 2 Weapon 4 | . . 1 . . 2 1 Highest Loss Streak 6 | . . 2 . . 2 6 Average Slot Usage (%) 97 | . 97 98 100 100 96 62 Engine 8 | . 6 4 14 14 7 . Core 4 | . 7 9 . . 1 3 Wheel 26 | . 28 27 28 28 17 7 Device 10 | . . 11 14 14 18 7 Storage 13 | . 14 14 14 14 9 18 Processor 1 | . . . . . 17 18 Protection 3 | . 11 2 . . 8 . Energy Gun 1 | . 7 . . . . . Ballistic Gun 11 | . 14 13 14 11 1 . Ballistic Cannon 11 | . 6 14 14 14 7 . Impact Weapon 1 | . . . . 2 9 7 Naked Turns . | . . . . . . . Heaviest Build 49 | 12 44 44 40 41 49 49 Greatest Support 32 | 32 32 32 32 32 26 26 Greatest Overweight (x) 13 | . 1 2 1 1 4 13 Average Overweight (x) . | . . 1 1 1 1 2 Largest Inventory Capacity 16 | 6 12 12 12 12 12 16 Average Capacity 11 | 4 8 12 12 12 12 15 Most Carried 12 | 4 11 12 11 12 11 8 Average Carried 9 | 1 5 9 11 11 8 6 Final Capacity 16 | 6 12 12 12 12 12 16 Final Carried 11 | . 11 11 11 11 8 6 Class Distribution -------------------- 100% | Mutant Dominant Class ---------------- Mutant | -10/Materials Mutant | -10/Mines Mutant | -10/Exiles Mutant | -9/Mines Mutant | -8/Materials Mutant | -8/Garrison Resources | -11 -10 -10 -10 -9 -8 -8 ----------- Run | Scr Mat Min Exi Min Mat Gar Matter Collected 656 | 209 142 169 . 26 73 37 Remotely . | . . . . . . . Salvage Created 631 | . 210 245 . . . 176 Parts 42 | . 15 24 . . . 3 Haulers Intercepted . | . . . . . . . Recyclers Shooed . | . . . . . . . Parts Field Recycled . | . . . . . . . Retrieved Matter . | . . . . . . . Parts Self-Destructed . | . . . . . . . Prevented . | . . . . . . . Kills | -11 -10 -10 -10 -9 -8 -8 ------- Run | Scr Mat Min Exi Min Mat Gar Combat Hostiles Destroyed 22 | . 4 15 . . . 3 Melee 1 | . . . . . . 1 Guns 4 | . 1 3 . . . . Cannons 15 | . 3 12 . . . . Classes Destroyed 4 | . 2 1 . . . 1 Watcher 2 | . 2 . . . . . Swarmer 12 | . . 12 . . . . Grunt 9 | . 4 3 . . . 2 Brawler 1 | . . . . . . 1 Best Kill Streak 6 | . 3 6 . . . 1 Combat Bots Only 6 | . 2 6 . . . 2 Max Kills in Single Turn 1 | . 1 1 . . . 1 Gunslinging . | . . . . . . . Exploded . | . . . . . . . Melee 1 | . . . . . . 1 Uniques/NPCs Destroyed . | . . . . . . . Combat | -11 -10 -10 -10 -9 -8 -8 -------- Run | Scr Mat Min Exi Min Mat Gar Damage Taken 1732 | . 204 430 . . 264 834 Core 670 | . 60 54 . . 68 488 Absorbed by Shields . | . . . . . . . Core Remaining (%) 77 | 100 . . . 54 . . Volleys Fired 48 | . 19 29 . . . . Largest 2 | . 2 2 . . . . Hottest 60 | . 60 55 . . . . Shots Fired 96 | . 38 58 . . . . Gun 59 | . 30 29 . . . . Cannon 37 | . 8 29 . . . . Launcher . | . . . . . . . Special . | . . . . . . . Kinetic 85 | . 27 58 . . . . Thermal . | . . . . . . . Explosive . | . . . . . . . Electromagnetic 11 | . 11 . . . . . Robot Hit Streak 22 | . 22 5 . . . . Robot Miss Streak 3 | . 1 3 . . . . Penetration Max . | . . . . . . . Secondary Targets . | . . . . . . . Shots Hit Robots 89 | . 31 30 . . 8 20 Core Hits 33 | . 11 18 . . 1 3 Critical Hits 1 | . . 1 . . . . Critical Kills 1 | . . 1 . . . . Critical Parts Destroyed . | . . . . . . . Melee Attacks 28 | . . . . . 8 20 Impact 28 | . . . . . 8 20 Slashing . | . . . . . . . Piercing . | . . . . . . . Sneak Attacks . | . . . . . . . Combat Hostiles . | . . . . . . . Follow-up Attacks . | . . . . . . . Damage Inflicted 1248 | . 362 390 . . 124 372 Guns 329 | . 241 88 . . . . Cannons 422 | . 121 301 . . . . Explosions . | . . . . . . . Melee 496 | . . . . . 124 372 Ramming 1 | . . 1 . . . . Kinetic 610 | . 221 389 . . . . Thermal . | . . . . . . . Explosive . | . . . . . . . Electromagnetic 141 | . 141 . . . . . Impact 496 | . . . . . 124 372 Slashing . | . . . . . . . Piercing . | . . . . . . . Highest Corruption 3 | . . . . . . 3 Average Corruption 2 | . . . . . . 2 Corruption Purged . | . . . . . . . Effects 1 | . . . . . . 1 Message Errors 1 | . . . . . . 1 Overload Shots . | . . . . . . . Overflow Damage 25 | . . . . . 2 23 Projectiles . | . . . . . . . Explosions . | . . . . . . . Melee 25 | . . . . . 2 23 Knockbacks 8 | . 2 3 . . 2 1 Impact 3 | . . . . . 2 1 Kinetic 5 | . 2 3 . . . . Secondary . | . . . . . . . Self-Inflicted Damage . | . . . . . . . Shots . | . . . . . . . Rammed 3 | . . 1 . . . 2 Targets Rammed 3 | . . 1 . . . 2 Kicked . | . . . . . . . Crushed . | . . . . . . . Highest Temperature 151 | . 151 69 . . . . Average Temperature 34 | . 48 21 . . . . Received Heat Transfer 492 | . 147 39 . . 81 225 Siege Activations . | . . . . . . . Robots Corrupted . | . . . . . . . Combat Hostiles . | . . . . . . . Parts Fried . | . . . . . . . Impact Corruptions 3 | . . . . . 1 2 Robots Melted . | . . . . . . . Combat Hostiles . | . . . . . . . Parts Melted . | . . . . . . . Heat Transferred . | . . . . . . . Parts Sabotaged . | . . . . . . . Parts Stolen . | . . . . . . . Parts Stripped . | . . . . . . . Power Chain Reactions . | . . . . . . . Missiles Intercepted . | . . . . . . . Alert | -11 -10 -10 -10 -9 -8 -8 ------- Run | Scr Mat Min Exi Min Mat Gar Peak Influence 249 | . 122 249 . . 63 40 Average Influence 51 | . 71 95 . . 9 22 Maximum Alert Level 1 | . . 1 . . . . Low Security (%) 98 | . . . . . . . Level 1 1 | . . . . . . . Level 2 . | . . . . . . . Level 3 . | . . . . . . . Level 4 . | . . . . . . . Level 5 . | . . . . . . . High Security . | . . . . . . . Max Security . | . . . . . . . Squads Dispatched 1 | . 1 . . . . . Investigation 1 | . 1 . . . . . Extermination . | . . . . . . . Reinforcement . | . . . . . . . Assault . | . . . . . . . Garrison . | . . . . . . . Intercept . | . . . . . . . Construction Impeded . | . . . . . . . Haulers Reinforced . | . . . . . . . Stealth | -11 -10 -10 -10 -9 -8 -8 --------- Run | Scr Mat Min Exi Min Mat Gar Distress Signals 1 | . 1 . . . . . Communications Jammed . | . . . . . . . Distress Signals . | . . . . . . . Times Spotted 42 | . 11 21 . . 6 4 Peak Tracking Total 5 | . 3 5 . . 4 3 Tactical Retreats 3 | . 1 2 . . . . Traps | -11 -10 -10 -10 -9 -8 -8 ------- Run | Scr Mat Min Exi Min Mat Gar Traps Triggered 5 | . 2 1 . . 2 . Indirectly . | . . . . . . . Trap Hack Attempts . | . . . . . . . Triggered . | . . . . . . . Disarmed . | . . . . . . . Reprogrammed . | . . . . . . . Reused . | . . . . . . . Traps Extracted . | . . . . . . . Installed . | . . . . . . . Triggered . | . . . . . . . Machines | -11 -10 -10 -10 -9 -8 -8 ---------- Run | Scr Mat Min Exi Min Mat Gar Machines Disabled . | . . . . . . . Max in Single Turn . | . . . . . . . Machines Sabotaged . | . . . . . . . Garrisons Compromised . | . . . . . . . Overloaded Fab Kills . | . . . . . . . Fab Network Shutdowns . | . . . . . . . Hacking | -11 -10 -10 -10 -9 -8 -8 --------- Run | Scr Mat Min Exi Min Mat Gar Machines Accessed 9 | . 7 1 . . 1 . Terminals 7 | . 7 . . . . . Fabricators . | . . . . . . . Repair Stations . | . . . . . . . Recycling Units . | . . . . . . . Scanalyzers . | . . . . . . . Garrison Access 1 | . . . . . 1 . Total Hacks 39 | . 37 1 . . 1 . Successful 30 | . 28 1 . . 1 . Failed 9 | . 9 . . . . . Catastrophic . | . . . . . . . Database Lockouts . | . . . . . . . Manual 28 | . 28 . . . . . Terminals 37 | . 37 . . . . . Fabricators . | . . . . . . . Repair Stations . | . . . . . . . Recycling Units . | . . . . . . . Scanalyzers . | . . . . . . . Garrison Access 1 | . . . . . 1 . Terminal Hacks 12 | . 11 1 . . . . Record 2 | . 2 . . . . . Part Schematic 3 | . 3 . . . . . Prototype ID Bank 2 | . 2 . . . . . Open Door 1 | . . 1 . . . . Surveillance Status 1 | . 1 . . . . . Transport Status 1 | . 1 . . . . . Registered Prototypes 1 | . 1 . . . . . Zone Layout 1 | . 1 . . . . . Fabricator Hacks . | . . . . . . . Repair Station Hacks . | . . . . . . . Recycling Unit Hacks . | . . . . . . . Scanalyzer . | . . . . . . . Garrison Access Hacks 1 | . . . . . 1 . Unlock Access 1 | . . . . . 1 . Unauthorized Hacks 41 | . 41 . . . . . Terminals 17 | . 17 . . . . . Track 5 | . 5 . . . . . Assimilate 4 | . 4 . . . . . Botnet 5 | . 5 . . . . . Operators 3 | . 3 . . . . . Fabricators . | . . . . . . . Repair Stations . | . . . . . . . Recycling Units . | . . . . . . . Scanalyzers . | . . . . . . . Garrison Access . | . . . . . . . Data Cores Recovered . | . . . . . . . Used . | . . . . . . . Hacking Detections 7 | . 7 . . . . . Full Trace Events . | . . . . . . . Feedback Events . | . . . . . . . Feedback Blocked . | . . . . . . . Robot Schematics Acquired . | . . . . . . . Robots Built . | . . . . . . . Matter . | . . . . . . . Time . | . . . . . . . Total Robot Build Rating . | . . . . . . . Part Schematics Acquired 3 | . 3 . . . . . Parts Built . | . . . . . . . Matter . | . . . . . . . Time . | . . . . . . . Total Part Build Rating . | . . . . . . . Parts Repaired . | . . . . . . . Time . | . . . . . . . Parts Recycled . | . . . . . . . Recycled Matter . | . . . . . . . Retrieved Matter . | . . . . . . . Retrieved Components . | . . . . . . . Parts Scanalyzed . | . . . . . . . Part Schematics Acquired . | . . . . . . . Parts Damaged . | . . . . . . . Bothacking | -11 -10 -10 -10 -9 -8 -8 ------------ Run | Scr Mat Min Exi Min Mat Gar Used RIF Installer . | . . . . . . . Robots Hacked . | . . . . . . . Non-combat . | . . . . . . . Combat . | . . . . . . . Robot Hacks Applied . | . . . . . . . Relay Couplers Released . | . . . . . . . Robots Rewired . | . . . . . . . Allies Hacked . | . . . . . . . Hacks Repelled . | . . . . . . . Allies | -11 -10 -10 -10 -9 -8 -8 -------- Run | Scr Mat Min Exi Min Mat Gar Total Allies 5 | . . 5 . . . . Largest Group 4 | . . 4 4 3 3 . Highest-Rated Group 71 | . . 71 71 40 40 . Highest-Rated Ally 31 | . . 31 31 16 16 . Total Orders 2 | . . 2 . . . . STAY 1 | . . 1 . . . . FOLLOW 1 | . . 1 . . . . Ally Attacks 32 | . . 20 . 1 11 . Total Damage 309 | . . 181 . 18 110 . Kills 6 | . . 4 . . 2 . Allies Corrupted . | . . . . . . . Allies Melted . | . . . . . . . Intel | -11 -10 -10 -10 -9 -8 -8 ------- Run | Scr Mat Min Exi Min Mat Gar Robot Analysis Total . | . . . . . . . Derelict Logs Recovered 3 | . . 2 . 1 . . Drone Launches . | . . . . . . . Drone Recoveries . | . . . . . . . Exploration | -11 -10 -10 -10 -9 -8 -8 ------------- Run | Scr Mat Min Exi Min Mat Gar Turns Passed 3416 | 54 647 928 706 703 238 140 Spaces Moved 2745 | 41 523 720 630 606 199 26 Core 8 | 4 . . . . . 4 Treads . | . . . . . . . Legs . | . . . . . . . Wheels 2737 | 37 523 720 630 606 199 22 Hover . | . . . . . . . Flight . | . . . . . . . Fastest Speed 50 | 50 100 110 110 100 100 100 Average Speed 108 | 95 104 110 110 108 100 193 Slowest Speed 700 | 100 110 120 110 110 120 700 Overloaded Moves . | . . . . . . . Propulsion Burnouts . | . . . . . . . Robots Hopped . | . . . . . . . Cave-ins Triggered . | . . . . . . . Exploration Rate (%) 55 | 4 76 99 90 100 15 7 Regions Visited 6 Branch Regions 3 Pre-discovered Areas 2 | . . 1 . 1 . . Known Exits Taken 1 | . . . . . 1 . Unknown Exits Taken 5 | 1 1 1 1 1 . . Scrap Searched 2 | . . 1 . 1 . . Spaces Dug . | . . . . . . . Terrain Destroyed . | . . . . . . . Melee . | . . . . . . . Projectile . | . . . . . . . AOE . | . . . . . . . Actions | -11 -10 -10 -10 -9 -8 -8 --------- Run | Scr Mat Min Exi Min Mat Gar Total 3038 | 55 587 802 643 653 224 74 Wait 145 | 3 28 40 14 36 . 24 Move 2739 | 40 522 719 629 605 198 26 Hop . | . . . . . . . Pick Up 36 | 6 13 5 . 5 7 . Fast Attach . | . . . . . . . Attach 22 | 6 1 4 . . 9 2 Detach . | . . . . . . . Swap 10 | . 3 3 . 2 2 . Drop 7 | . 1 1 . 5 . . Fire 48 | . 19 29 . . . . Melee 28 | . . . . . 8 20 Ram 3 | . . 1 . . . 2 Kick . | . . . . . . . Crush . | . . . . . . . Escape Stasis . | . . . . . . . Rewire . | . . . . . . . Trap . | . . . . . . . Miscellaneous . | . . . . . . . Route ------- -11/Scrapyard -10/Materials (discovered 4 exits: [*Mat x2] / *Min x2) -10/Mines (discovered 3 exits: [*Mat x2] / *Exi) -10/Exiles (discovered 2 exits: [*Min x2]) -9/Mines (discovered 2 exits: *Mat x2) -8/Materials -8/Garrison History --------- Turn | Location | Event 22 | -11/Scrapyard | Discovered new exit (range 15) 55 | -11/Scrapyard | Entered Materials 129 | -10/Materials | Discovered new exit (range 15) 149 | -10/Materials | Discovered new exit (range 14) 315 | -10/Materials | Build established: Mutant 549 | -10/Materials | Discovered new exit (range 14) 686 | -10/Materials | Discovered new exit (range 8) 702 | -10/Materials | Entered Mines 877 | -10/Mines | Found a damaged Exp. Sensor Array with a note attached 880 | -10/Mines | Found Prototype Device 886 | -10/Mines | Identified Exp. Sensor Array 1000 | -10/Mines | Deemed a non-threat by the Exiles lab entrance 1000 | -10/Mines | Discovered new exit (range 5) 1049 | -10/Mines | Discovered new exit (range 13) 1065 | -10/Mines | Learned Materials stockpile data 1168 | -10/Mines | Assisted by bots powering up and referring to "LRC-V3" 1308 | -10/Mines | Met a Derelict who couldn't figure out how to use a Trap Extractor 1514 | -10/Mines | Discovered new exit (range 10) 1630 | -10/Mines | Entered Exiles 1630 | -10/Exiles | Accompanied by 4 allies 1657 | -10/Exiles | Met 8R-AWN 1660 | -10/Exiles | Led the pair of lost Derelicts to a safe place 1710 | -10/Exiles | Met EX-HEX 1753 | -10/Exiles | Met EX-DEC 1800 | -10/Exiles | Discovered new exit (range 12) 1873 | -10/Exiles | Met EX-BIN 2106 | -10/Exiles | Visited The Gauntlet 2313 | -10/Exiles | Discovered new exit (range 15) 2336 | -10/Exiles | Entered Mines 2336 | -9/Mines | Accompanied by 3 allies 2368 | -9/Mines | Met a Derelict bent on vengeance 2650 | -9/Mines | Assisted by bots powering up and referring to "LRC-V3" 2695 | -9/Mines | Learned location of Storage (-7) 2824 | -9/Mines | Discovered new exit (range 7) 2901 | -9/Mines | Joined a pair of Derelicts in attacking an 0b10 outpost 3011 | -9/Mines | Discovered new exit (range 6) 3039 | -9/Mines | Entered Materials 3039 | -8/Materials | Accompanied by 3 allies 3039 | -8/Materials | Evolved 4 slots: Utility x4 3276 | -8/Materials | Identified exit to Garrison 3277 | -8/Materials | Entered Garrison 3360 | -8/Garrison | Core integrity fell below 50% 3385 | -8/Garrison | Lost 6 parts (1p3n2u) 3400 | -8/Garrison | Core integrity fell below 20% 3417 | -8/Garrison | Destroyed by H-55 Commando with Gauss Rifle Last Messages --------------- 03337_ Exp. Sensor Array destroyed. 03337_ System corrupted by crushing effect (+1). 03344_ B-36 Bruiser destroyed. 03348_ Acquired 37 matter. 03354_ Penetrated by Slug. 03354_ Wheel destroyed. 03357_ Penetrated by Slug. 03364_ Destroyed Lgt. Nuclear Core. 03364_ G-47 Trooper system corrupted by crushing effect. 03365_ G-47 Trooper system terminally corrupted. 03366_ Penetrated by Slug. 03368_ S T=GY#Z:XB%NF,/MH#LDSE3ZBO:R>NQIYEP 03385_ Penetrated by Slug. 03399_ Mace destroyed. 03404_ Slammed into H-55 Commando. 03405_ Penetrated by Slug. 03411_ Slammed into H-55 Commando. 03411_ Destabilizing: System interference. 03411_ Armor Integrity Analyzer temporarily disabled. 03414_ Penetrated by Slug. Map ----- +----------------------------------------------------+ | ?????????????????????????????????????????????????? | | ?????????????????????????????????????????????????? | | ?????????????????????????????????????????????????? | | ?????????????????????????????????????????????????? | | ?????????????????????????????????????????????????? | | ?????????????????????????????????????????????????? | | ?????????????????????????????????????????????????? | | ?????????????????????????????????????????????????? | | ?????????????????????????????????????????????????? | | ?????????????????????????????????????????????????? | | ?????????????????????????????????????????????????? | | ?????????????????????????????????????????????????? | | ?????????????????????????????????????????????????? | | ?????????????????????????????????????????????????? | | ?????????????????????????????????????????????????? | | ?????????????????????????????????????????????????? | | ?????????????????????????????????????????????????? | | ??????????#####??????????????????????????????????? | | ??????????# #??????????????????????????????????? | | ??????????# #############??????????????????????? | | ??????????# #??????????????????????? | | ??????????# %%#??????????????????????? | | ??????????##############%/#??????????????????????? | | ???????????????????????#==#??????????????????????? | | ???????????????????????# h#??????????????????????? | | ???????????????????????#%@#??????????????????????? | | ???????????????????????# #??????????????????????? | | ???????????????????????# #??????????????????????? | | ???????????????????????# #??????????????????????? | | ??????????????????????? ??????????????????????? | | ???????????????????????# ??????????????????????? | | ???????????????????????# ##?????????????????????? | | ???????????????????????# #??????????????????????? | | ???????????????????????# #??????????????????????? | | ???????????????????????# #??????????????????????? | | ???????????????????????# #??????????????????????? | | ???????????????????????# #??????????????????????? | | ???????????????????????# #??????????????????????? | | ???????????????????????? ???????????????????????? | | ???????????????????????? ???????????????????????? | | ???????????????????????? ???????????????????????? | | ?????????????????????????????????????????????????? | | ?????????????????????????????????????????????????? | | ?????????????????????????????????????????????????? | | ?????????????????????????????????????????????????? | | ?????????????????????????????????????????????????? | | ?????????????????????????????????????????????????? | | ?????????????????????????????????????????????????? | | ?????????????????????????????????????????????????? | | ?????????????????????????????????????????????????? | +----------------------------------------------------+ Best States ------------- Heat Dissipation 31 Energy Generation 14 Energy Capacity 250 Matter Stores 300 Matter Capacity 300 Sight Range 16 Robot Scan Range 30 Terrain Scan Density 10 Jamming Range 8 Armor Coverage 225 Resistance: KI 20 Resistance: TH 20 Resistance: EX 20 Resistance: EM 20 Resistance: I 20 Resistance: S 20 Resistance: P 20 Evasion (%) 40 Armor Integrity Analysis 33 Item Schematics ----------------- Hcp. Storage Unit | -10/Materials | Hacked Lgt. Armor Plating | -10/Materials | Hacked Targeting Computer | -10/Materials | Hacked Robot Schematics ------------------ None Fabricated ------------ Nothing Alien Tech Used ----------------- None Achievements -------------- None Challenges ------------ None Game ------ Seed CoreShadeWarhead Manual? 0 Play Time 00:25:09 Cumulative 60.0 hours Start 2019.10.29 @ 21:09:30 End 2019.10.29 @ 21:33:28 Sessions 1 Manual Loads 0 Difficulty Adventurer Special Mode None Game No. 98 Rogue 70 Adventurer 14 Explorer 1 Win Type - Total 0 Types 0/0/0/0/0/0/0 Lore% 28 Gallery% 47 Achievement% 36 Wizard Run 0 Options --------- ASCII 0 Keyboard 0 Movement Numpad Keybinds 0 Fullscreen 1 Font 12/Tallcaps Map View 83x54 Tactical HUD 1 Map Filters NONE Filters NONE Steam 1 RUN: 621546b6-fdf7-46d3-b1d8-267d065a95f8